fUSD/lending_fUSD_20250205
["ID","MTS","AMOUNT","RATE_DAILY","PERIOD"]
[351735051,1738770676031,-515.889473,0.00011778,2]
[351735052,1738770676042,-1126.69,0.00011778,2]
[351735053,1738770676051,-1018.07,0.00011778,2]
[351735054,1738770676061,-1111.66,0.00011778,2]
[351735055,1738770676071,-908.3,0.00011778,2]
[351735056,1738770676080,-1020.86,0.00011778,2]
[351735057,1738770676092,-2757.85,0.00011778,2]
[351735058,1738770676101,-500.0,0.00011778,2]
[351735059,1738770676110,-778.98,0.00011778,2]
[351735060,1738770676122,-1433.93,0.00011778,2]
[351735061,1738770676131,-1530.38,0.00011778,2]
[351735062,1738770676141,-589.89,0.00011778,2]
[351735063,1738770676151,-2425.07,0.00011778,2]
[351735064,1738770676160,-1082.03,0.00011778,2]
[351735065,1738770676170,-1820.02,0.00011778,2]
[351735066,1738770676181,-921.5,0.00011778,2]
[351735067,1738770676190,-2070.11,0.00011778,2]
[351735068,1738770676200,-593.97,0.00011778,2]
[351735069,1738770676210,-1845.69,0.00011778,2]
[351735070,1738770676219,-1760.24,0.00011778,2]
[351735071,1738770676229,-761.1,0.00011778,2]
[351735072,1738770676238,-2654.05,0.00011778,2]
[351735073,1738770676248,-1672.03,0.00011778,2]
[351735074,1738770676258,-2982.03,0.00011778,2]
[351735075,1738770676268,-1673.58,0.00011778,2]
[351735076,1738770676278,-2307.76,0.00011778,2]
[351735077,1738770676288,-1855.54,0.00011778,2]
[351735078,1738770676298,-2958.38,0.00011778,2]
[351735079,1738770676307,-2623.09,0.00011778,2]
[351735080,1738770676317,-1036.56,0.00011778,2]
[351735081,1738770676327,-2084.26,0.00011778,2]
[351735082,1738770676337,-1013.94,0.00011778,2]
[351735083,1738770676347,-1161.41,0.00011778,2]
[351735084,1738770676357,-500.0,0.00011778,2]
[351735085,1738770676367,-1354.82,0.00011778,2]
[351735086,1738770676377,-3316.09,0.00011778,2]
[351735087,1738770676387,-500.0,0.00011778,2]
[351735088,1738770676396,-2075.83,0.00011778,2]
[351735089,1738770676406,-2436.56,0.00011778,2]
[351735090,1738770676416,-1343.72,0.00011778,2]
[351735091,1738770676425,-1245.1,0.00011778,2]
[351735092,1738770676435,-246.5230942,0.00011779,2]
[351735093,1738770676444,-596.28,0.00011779,2]
[351735094,1738770676454,-500.0,0.00011779,2]
[351735095,1738770676464,-1332.61,0.00011779,2]
[351735096,1738770676473,-500.0,0.00011779,2]
[351735097,1738770676483,-1095.47,0.00011779,2]
[351735098,1738770676493,-678.16,0.00011779,2]
[351735099,1738770676503,-563.16,0.00011779,2]
[351735100,1738770676512,-749.13,0.00011779,2]
[351735101,1738770676522,-607.4,0.00011779,2]
[351735102,1738770676532,-900.55,0.00011779,2]
[351735103,1738770676541,-1434.78,0.00011779,2]
[351735104,1738770676551,-576.8,0.00011779,2]
[351735105,1738770676561,-706.22,0.00011779,2]
[351735106,1738770676570,-684.39,0.00011779,2]
[351735107,1738770676580,-1039.07,0.00011779,2]
[351735108,1738770676590,-1018.32,0.00011779,2]
[351735109,1738770676599,-897.3,0.00011779,2]
[351735110,1738770676608,-673.69,0.00011779,2]
[351735111,1738770676618,-1041.58,0.00011779,2]
[351735112,1738770676627,-500.0,0.00011779,2]
[351735113,1738770676638,-534.42,0.00011779,2]
[351735114,1738770676648,-740.11,0.00011779,2]
[351735115,1738770676658,-1557.89,0.00011779,2]
[351735116,1738770676667,-731.82,0.00011779,2]
[351735117,1738770676677,-721.17,0.00011779,2]
[351735118,1738770676686,-500.0,0.00011779,2]
[351735119,1738770676696,-519.49,0.00011779,2]
[351735120,1738770676705,-829.1,0.00011779,2]
[351735121,1738770676715,-858.89,0.00011779,2]
[351735122,1738770676728,-500.0,0.00011779,2]
[351735123,1738770676739,-921.22,0.00011779,2]
[351735124,1738770676752,-500.0,0.00011779,2]
[351735125,1738770676767,-946.31,0.00011779,2]
[351735126,1738770676779,-500.0,0.00011779,2]
[351735127,1738770676788,-802.39,0.00011779,2]
[351735128,1738770676798,-1382.83,0.00011779,2]
[351735129,1738770676807,-1400.23,0.00011779,2]
[351735130,1738770676817,-745.53,0.00011779,2]
[351735131,1738770676826,-707.14,0.00011779,2]
[351735132,1738770676837,-1118.15,0.00011779,2]
[351735133,1738770676847,-826.65,0.00011779,2]
[351735134,1738770676857,-721.92,0.00011779,2]
[351735135,1738770676867,-1111.61,0.00011779,2]
[351735136,1738770676877,-801.84,0.00011779,2]
[351735137,1738770676887,-500.0,0.00011779,2]
[351735138,1738770676897,-969.53,0.00011779,2]
[351735139,1738770676906,-902.57,0.00011779,2]
[351735140,1738770676916,-500.0,0.00011779,2]
[351735141,1738770676926,-1168.87,0.00011779,2]
[351735142,1738770676935,-500.0,0.00011779,2]
[351735143,1738770676946,-1387.9,0.00011779,2]
[351735144,1738770676956,-1060.41,0.0001178,2]
[351735145,1738770676966,-758.92,0.0001178,2]
[351735146,1738770676977,-757.71,0.0001178,2]
[351735147,1738770676986,-500.0,0.0001178,2]
[351735148,1738770676996,-1429.12,0.0001178,2]
[351735149,1738770677006,-1425.5,0.0001178,2]
[351735150,1738770677022,-1244.98,0.0001178,2]
[351735151,1738770677033,-1283.65,0.0001178,2]
[351735152,1738770677044,-3135.32,0.0001178,2]
[351735153,1738770677055,-3428.69,0.0001178,2]
[351735154,1738770677067,-1000.0,0.0001178,2]
[351735155,1738770677079,-1299.19,0.0001178,2]
[351735156,1738770677090,-1145.57,0.0001178,2]
[351735157,1738770677101,-1194.71,0.0001178,2]
[351735158,1738770677111,-739.14,0.0001178,2]
[351735159,1738770677123,-2567.97,0.0001178,2]
[351735160,1738770677134,-853.27,0.0001178,2]
[351735161,1738770677145,-1570.67,0.0001178,2]
[351735162,1738770677155,-2103.34,0.0001178,2]
[351735163,1738770677165,-1000.0,0.0001178,2]
[351735164,1738770677175,-520.86,0.0001178,2]
[351735165,1738770677186,-1711.72,0.0001178,2]
[351735166,1738770677196,-994.0,0.000118,4]
[351735167,1738770677205,-152.0,0.00011806,9]
[351735168,1738770677216,-1109.86,0.00011849,2]
[351735169,1738770677226,-601.45,0.00011849,2]
[351735170,1738770677236,-651.5,0.00011849,2]
[351735171,1738770677246,-2690.41,0.00011849,2]
[351735172,1738770677256,-1927.8,0.00011849,2]
[351735173,1738770677266,-1684.83,0.00011849,2]
[351735174,1738770677275,-1968.47,0.00011849,2]
[351735175,1738770677285,-1487.65,0.00011849,2]
[351735176,1738770677295,-1200.92,0.00011849,2]
[351735177,1738770677304,-2590.26,0.00011849,2]
[351735178,1738770677314,-3157.9,0.00011849,2]
[351735179,1738770677324,-1135.45,0.00011849,2]
[351735180,1738770677334,-553.43,0.00011849,2]
[351735181,1738770677344,-2633.64,0.00011849,2]
[351735182,1738770677354,-1119.78,0.00011849,2]
[351735183,1738770677364,-1006.46,0.00011849,2]
[351735184,1738770677375,-1737.61,0.00011849,2]
[351735185,1738770677386,-2022.8,0.00011849,2]
[351735186,1738770677396,-668.09,0.00011849,2]
[351735187,1738770677405,-587.82,0.00011849,2]
[351735188,1738770677415,-1000.50447902,0.00011871,2]
[351735189,1738770677425,-1000.0,0.00011875,2]
[351735190,1738770677434,-1000.0,0.00011875,2]
[351735191,1738770677444,-1000.0,0.00011875,2]
[351735192,1738770677453,-1000.0,0.00011875,2]
[351735193,1738770677463,-1000.0,0.00011875,2]
[351735194,1738770677473,-1000.0,0.00011875,2]
[351735195,1738770677482,-1000.0,0.00011875,2]
[351735196,1738770677492,-1000.0,0.00011875,2]
[351735197,1738770677501,-1000.0,0.00011875,2]
[351735198,1738770677510,-1000.0,0.00011875,2]
[351735199,1738770677520,-1380.021837,0.00011888,2]
[351735200,1738770677530,-241.74103317,0.0001189,2]
[351735201,1738770677540,-656.49389047,0.0001189,2]
[351735202,1738770677550,-2000.0,0.000119,2]
[351735203,1738770677560,-1862.25675,0.000119,2]
[351735204,1738770677570,-2000.0,0.000119,2]
[351735205,1738770677579,-2000.0,0.000119,2]
[351735206,1738770677590,-2000.0,0.000119,2]
[351735207,1738770677599,-2000.0,0.000119,2]
[351735208,1738770677609,-2000.0,0.000119,2]
[351735209,1738770677621,-2000.0,0.000119,2]
[351735210,1738770677631,-2000.0,0.000119,2]
[351735211,1738770677640,-2000.0,0.000119,2]
[351735212,1738770677651,-2000.0,0.000119,2]
[351735213,1738770677661,-25228.53369301,0.000119,2]
[351735214,1738770678000,-4782.13280799,0.000119,2]
[351735215,1738770678015,-748.36744206,0.000119,2]
[351735216,1738770678026,-6993.63299268,0.000119,2]
[351735217,1738770678039,-18481.68776418,0.000119,2]
[351735218,1738770678050,-2699.91360943,0.000119,2]
[351735219,1738770678060,-161929.0,0.000119,2]
[351735220,1738770678071,-500.0,0.00011914,2]
[351735221,1738770678082,-523.387043,0.00011915,2]
[351735222,1738770678094,-515.889473,0.00011915,2]
[351735223,1738770678104,-1126.69,0.00011915,2]
[351735224,1738770678115,-1018.07,0.00011915,2]
[351735225,1738770678126,-1111.66,0.00011915,2]
[351735226,1738770678137,-908.3,0.00011915,2]
[351735227,1738770678148,-1020.86,0.00011915,2]
[351735228,1738770678159,-2757.85,0.00011915,2]
[351735229,1738770678169,-500.0,0.00011915,2]
[351735230,1738770678181,-778.98,0.00011915,2]
[351735231,1738770678192,-1433.93,0.00011915,2]
[351735232,1738770678203,-1530.38,0.00011915,2]
[351735233,1738770678215,-589.89,0.00011915,2]
[351735234,1738770678226,-2425.07,0.00011915,2]
[351735235,1738770678238,-1082.03,0.00011915,2]
[351735236,1738770678249,-1820.02,0.00011915,2]
[351735237,1738770678260,-921.5,0.00011915,2]
[351735238,1738770678272,-2070.11,0.00011915,2]
[351735239,1738770678283,-1845.69,0.00011915,2]
[351735240,1738770678293,-1760.24,0.00011915,2]
[351735241,1738770678304,-761.1,0.00011915,2]
[351735242,1738770678314,-2654.05,0.00011915,2]
[351735243,1738770678325,-1672.03,0.00011915,2]
[351735244,1738770678337,-2982.03,0.00011915,2]
[351735245,1738770678516,-1673.58,0.00011915,2]
[351735246,1738770678527,-2307.76,0.00011915,2]
[351735247,1738770678537,-1855.54,0.00011915,2]
[351735248,1738770678548,-2958.38,0.00011915,2]
[351735249,1738770678557,-2623.09,0.00011915,2]
[351735250,1738770678568,-1036.56,0.00011915,2]
[351735251,1738770678578,-2084.26,0.00011915,2]
[351735252,1738770678588,-1013.94,0.00011915,2]
[351735253,1738770678598,-1161.41,0.00011915,2]
[351735254,1738770678607,-500.0,0.00011915,2]
[351735255,1738770678618,-1354.82,0.00011915,2]
[351735256,1738770678627,-3316.09,0.00011915,2]
[351735257,1738770678637,-603.53,0.00011915,2]
[351735258,1738770678647,-2075.83,0.00011915,2]
[351735259,1738770678656,-2436.56,0.00011915,2]
[351735260,1738770678667,-1343.72,0.00011915,2]
[351735261,1738770678676,-596.28,0.00011916,2]
[351735262,1738770678687,-500.0,0.00011916,2]
[351735263,1738770678697,-1332.61,0.00011916,2]
[351735264,1738770678706,-181.85,0.00011916,2]
[351735265,1738770678716,-1095.47,0.00011916,2]
[351735266,1738770678726,-678.16,0.00011916,2]
[351735267,1738770678736,-563.16,0.00011916,2]
[351735268,1738770678746,-749.13,0.00011916,2]
[351735269,1738770678756,-607.4,0.00011916,2]
[351735270,1738770678767,-900.55,0.00011916,2]
[351735271,1738770678777,-1434.78,0.00011916,2]
[351735272,1738770678786,-576.8,0.00011916,2]
[351735273,1738770678796,-706.22,0.00011916,2]
[351735274,1738770678806,-684.39,0.00011916,2]
[351735275,1738770678815,-1039.07,0.00011916,2]
[351735276,1738770678824,-1018.32,0.00011916,2]
[351735277,1738770678834,-897.3,0.00011916,2]
[351735278,1738770678843,-673.69,0.00011916,2]
[351735279,1738770678852,-1041.58,0.00011916,2]
[351735280,1738770678862,-500.0,0.00011916,2]
[351735281,1738770678873,-534.42,0.00011916,2]
[351735282,1738770678883,-740.11,0.00011916,2]
[351735283,1738770678892,-1557.89,0.00011916,2]
[351735284,1738770678901,-731.82,0.00011916,2]
[351735285,1738770678911,-721.17,0.00011916,2]
[351735286,1738770678921,-500.0,0.00011916,2]
[351735287,1738770678931,-519.49,0.00011916,2]
[351735288,1738770678940,-829.1,0.00011916,2]
[351735289,1738770678950,-858.89,0.00011916,2]
[351735290,1738770678960,-500.0,0.00011916,2]
[351735291,1738770678970,-921.22,0.00011916,2]
[351735292,1738770678980,-500.0,0.00011916,2]
[351735293,1738770678990,-946.31,0.00011916,2]
[351735294,1738770679001,-500.0,0.00011916,2]
[351735295,1738770679012,-802.39,0.00011916,2]
[351735296,1738770679023,-1382.83,0.00011916,2]
[351735297,1738770679033,-1400.23,0.00011916,2]
[351735298,1738770679044,-745.53,0.00011916,2]
[351735299,1738770679055,-707.14,0.00011916,2]
[351735300,1738770679065,-1118.15,0.00011916,2]
[351735301,1738770679075,-826.65,0.00011916,2]
[351735302,1738770679085,-721.92,0.00011916,2]
[351735303,1738770679096,-1111.61,0.00011916,2]
[351735304,1738770679106,-801.84,0.00011916,2]
[351735305,1738770679116,-500.0,0.00011916,2]
[351735306,1738770679127,-969.53,0.00011916,2]
[351735307,1738770679137,-902.57,0.00011916,2]
[351735308,1738770679147,-500.0,0.00011916,2]
[351735309,1738770679157,-1168.87,0.00011916,2]
[351735310,1738770679167,-645.74393262,0.00011916,2]
[351735311,1738770679177,-1387.9,0.00011916,2]
[351735312,1738770679188,-1060.41,0.00011917,2]
[351735314,1738770679198,-758.92,0.00011917,2]
[351735315,1738770679207,-757.71,0.00011917,2]
[351735316,1738770679217,-500.0,0.00011917,2]
[351735317,1738770679227,-174.032486,0.00011917,2]
[351735318,1738770679237,-174.032486,0.00011917,2]
[351735319,1738770679247,-1429.12,0.00011917,2]
[351735320,1738770679257,-1425.5,0.00011917,2]
[351735321,1738770679266,-1244.98,0.00011917,2]
[351735322,1738770679277,-1283.65,0.00011917,2]
[351735323,1738770679287,-3135.32,0.00011917,2]
[351735324,1738770679297,-3428.69,0.00011917,2]
[351735325,1738770679308,-1299.19,0.00011917,2]
[351735326,1738770679317,-1145.57,0.00011917,2]
[351735327,1738770679327,-1194.71,0.00011917,2]
[351735328,1738770679337,-739.14,0.00011917,2]
[351735329,1738770679347,-2567.97,0.00011917,2]
[351735330,1738770679357,-853.27,0.00011917,2]
[351735331,1738770679367,-1570.67,0.00011917,2]
[351735332,1738770679377,-2103.34,0.00011917,2]
[351735333,1738770679387,-1000.0,0.00011917,2]
[351735334,1738770679397,-520.86,0.00011917,2]
[351735335,1738770679407,-1711.72,0.00011917,2]
[351735336,1738770679417,-9664.90165544,0.00011964,2]
[351735337,1738770679427,-2745.891891,0.0001198,2]
[351735338,1738770679436,-2000.0,0.0001198,7]
[351735339,1738770679447,-1109.93433334,0.00011986,2]
[351735340,1738770679457,-601.58853425,0.00011986,2]
[351735341,1738770679467,-651.55129093,0.00011986,2]
[351735342,1738770679477,-2690.5,0.00011986,2]
[351735343,1738770679487,-1927.81494423,0.00011986,2]
[351735344,1738770679497,-1684.95,0.00011986,2]
[351735345,1738770679507,-1968.51999788,0.00011986,2]
[351735346,1738770679516,-1487.79661836,0.00011986,2]
[351735347,1738770679526,-1201.13424035,0.00011986,2]
[351735348,1738770679536,-2590.31,0.00011986,2]
[351735349,1738770679546,-3158.1,0.00011986,2]
[351735350,1738770679556,-1135.62,0.00011986,2]
[351735351,1738770679566,-553.43,0.00011986,2]
[351735352,1738770679576,-2633.68424471,0.00011986,2]
[351735353,1738770679585,-1119.85,0.00011986,2]
[351735354,1738770679595,-1006.55,0.00011986,2]
[351735355,1738770679605,-1737.81015617,0.00011986,2]
[351735356,1738770679615,-2023.03424009,0.00011986,2]
[351735357,1738770679625,-668.26,0.00011986,2]
[351735358,1738770679635,-587.82,0.00011986,2]
[351735359,1738770679644,-300.0,0.00011988,2]
[351735360,1738770679654,-300.0,0.00011988,2]
[351735361,1738770679664,-300.0,0.00011988,2]
[351735362,1738770679673,-300.0,0.00011988,2]
[351735363,1738770679684,-113693.24865339,0.00011989,2]
[351735364,1738770679693,-300.0,0.00011989,2]
[351735365,1738770679703,-300.0,0.00011989,2]
[351735366,1738770679713,-300.0,0.00011989,2]
[351735367,1738770679722,-300.0,0.00011989,2]
[351735368,1738770679732,-2450.49880784,0.0001199,2]
[351735369,1738770679742,-56893.662843,0.0001199,5]
[351735370,1738770679751,-222797.14487081,0.0001199,2]
[351735371,1738770679764,-2170.43376116,0.0001199,2]
[351735372,1738770679776,-341.95908273,0.0001199,2]
[351735373,1738770679801,-500.0,0.00011438,2]
[351735374,1738770679815,-1245.1,0.00011915,2]
[351735375,1738770679825,-8075.88906001,0.0001199,2]
[351735391,1738770904703,158.19176708,0.0001199,30]
[351735393,1738771025794,156.81,7.705e-05,2]
[351735394,1738771144444,500.0,0.0002,120]
[351735395,1738771179700,1000.0,0.0002,120]
[351735396,1738771231267,150.0,0.00019526,120]
[351735412,1738771375124,1662.05438725,0.0002,120]
[351735594,1738771589627,4072.98,7.668e-05,2]
[351735596,1738771708784,847.63,7.711e-05,2]
[351735597,1738771760101,-1469.64,8.219e-05,2]
[351735598,1738771760126,-1000.0,8.219e-05,2]
[351735599,1738771760145,-2330.893822,8.256e-05,2]
[351735616,1738771832192,-367.657578,8.256e-05,2]
[351735617,1738771832204,-3551.48197666,8.256e-05,2]
[351735618,1738771832214,-207.45,8.495e-05,2]
[351735619,1738771832223,-207.45,8.497e-05,2]
[351735620,1738771832233,-207.45,8.499e-05,2]
[351735621,1738771832242,-721.73025651,8.499e-05,2]
[351735622,1738771832253,-207.45,8.501e-05,2]
[351735623,1738771832263,-207.45,8.504e-05,2]
[351735624,1738771832272,-207.45,8.506e-05,2]
[351735625,1738771832282,-207.45,8.508e-05,2]
[351735626,1738771832292,-207.45,8.51e-05,2]
[351735627,1738771832304,-207.45,8.513e-05,2]
[351735628,1738771832314,-207.45,8.515e-05,2]
[351735629,1738771832325,-207.45,8.517e-05,2]
[351735630,1738771832334,-207.45,8.519e-05,2]
[351735631,1738771832344,-207.45,8.522e-05,2]
[351735632,1738771832354,-207.45,8.524e-05,2]
[351735633,1738771832364,-207.45,8.526e-05,2]
[351735634,1738771832377,-207.45,8.528e-05,2]
[351735635,1738771832387,-207.45,8.531e-05,2]
[351735636,1738771832397,-207.45,8.533e-05,2]
[351735637,1738771832406,-207.45,8.535e-05,2]
[351735638,1738771832418,-207.45,8.537e-05,2]
[351735639,1738771832427,-300.0,8.698e-05,2]
[351735640,1738771832437,-31024.7111,8.699e-05,2]
[351735641,1738771832448,-3880.0135,8.699e-05,2]
[351735642,1738771832458,-500.0,8.835e-05,2]
[351735643,1738771832468,-500.0,8.835e-05,2]
[351735644,1738771832477,-500.0,8.835e-05,2]
[351735645,1738771832487,-500.0,8.835e-05,2]
[351735646,1738771832496,-500.0,8.835e-05,2]
[351735647,1738771832506,-500.0,8.835e-05,2]
[351735648,1738771832516,-500.0,8.835e-05,2]
[351735649,1738771832525,-500.0,8.835e-05,2]
[351735650,1738771832535,-500.0,8.835e-05,2]
[351735651,1738771832545,-500.0,8.835e-05,2]
[351735652,1738771832560,-500.0,8.835e-05,2]
[351735653,1738771832570,-500.0,8.835e-05,2]
[351735654,1738771832579,-500.0,8.835e-05,2]
[351735655,1738771832589,-500.0,8.835e-05,2]
[351735657,1738771832599,-500.0,8.835e-05,2]
[351735659,1738771832610,-500.0,8.835e-05,2]
[351735661,1738771832619,-500.0,8.835e-05,2]
[351735663,1738771832629,-500.0,8.835e-05,2]
[351735665,1738771832638,-500.0,8.835e-05,2]
[351735667,1738771832648,-500.0,8.835e-05,2]
[351735669,1738771832657,-500.0,8.835e-05,2]
[351735671,1738771832667,-500.0,8.835e-05,2]
[351735673,1738771832676,-500.0,8.835e-05,2]
[351735675,1738771832686,-500.0,8.835e-05,2]
[351735677,1738771832695,-500.0,8.835e-05,2]
[351735679,1738771832704,-500.0,8.835e-05,2]
[351735681,1738771832714,-500.0,8.835e-05,2]
[351735683,1738771832723,-501.64296306,8.835e-05,2]
[351735684,1738771832733,-500.0,8.835e-05,2]
[351735686,1738771832742,-500.0,8.835e-05,2]
[351735688,1738771832752,-500.0,8.835e-05,2]
[351735690,1738771832761,-500.0,8.835e-05,2]
[351735692,1738771832770,-500.0,8.835e-05,2]
[351735694,1738771832780,-500.0,8.835e-05,2]
[351735695,1738771832790,-500.0,8.835e-05,2]
[351735697,1738771832803,-500.0,8.835e-05,2]
[351735698,1738771832812,-500.0,8.835e-05,2]
[351735700,1738771832821,-500.0,8.835e-05,2]
[351735702,1738771832830,-500.0,8.835e-05,2]
[351735703,1738771832839,-500.0,8.835e-05,2]
[351735705,1738771832849,-500.0,8.835e-05,2]
[351735706,1738771832858,-500.0,8.835e-05,2]
[351735708,1738771832867,-500.0,8.835e-05,2]
[351735710,1738771832877,-500.0,8.835e-05,2]
[351735711,1738771832886,-500.0,8.835e-05,2]
[351735713,1738771832895,-500.0,8.835e-05,2]
[351735715,1738771832905,-500.0,8.835e-05,2]
[351735716,1738771832913,-500.0,8.835e-05,2]
[351735718,1738771832924,-500.0,8.835e-05,2]
[351735720,1738771832933,-500.0,8.835e-05,2]
[351735722,1738771832942,-527.41,8.835e-05,2]
[351735723,1738771832952,-500.0,8.835e-05,2]
[351735725,1738771832961,-500.0,8.835e-05,2]
[351735726,1738771832970,-500.0,8.835e-05,2]
[351735728,1738771832979,-500.0,8.835e-05,2]
[351735730,1738771832988,-500.0,8.835e-05,2]
[351735731,1738771832997,-500.0,8.835e-05,2]
[351735733,1738771833007,-500.0,8.835e-05,2]
[351735735,1738771833017,-500.0,8.835e-05,2]
[351735736,1738771833027,-500.0,8.835e-05,2]
[351735738,1738771833037,-500.0,8.835e-05,2]
[351735740,1738771833046,-500.0,8.835e-05,2]
[351735741,1738771833062,-500.0,8.835e-05,2]
[351735743,1738771833072,-500.0,8.835e-05,2]
[351735745,1738771833082,-500.0,8.835e-05,2]
[351735747,1738771833092,-500.0,8.835e-05,2]
[351735748,1738771833101,-500.0,8.835e-05,2]
[351735750,1738771833111,-500.0,8.835e-05,2]
[351735768,1738771833333,-500.0,8.835e-05,2]
[351735770,1738771833347,-500.0,8.835e-05,2]
[351735772,1738771833357,-500.0,8.835e-05,2]
[351735773,1738771833371,-500.0,8.835e-05,2]
[351735775,1738771833381,-500.0,8.835e-05,2]
[351735777,1738771833391,-500.0,8.835e-05,2]
[351735779,1738771833400,-500.0,8.835e-05,2]
[351735780,1738771833411,-563.44863153,8.835e-05,2]
[351735782,1738771833421,-500.0,8.835e-05,2]
[351735784,1738771833431,-500.0,8.835e-05,2]
[351735785,1738771833440,-500.0,8.835e-05,2]
[351735787,1738771833450,-500.0,8.835e-05,2]
[351735789,1738771833461,-500.0,8.835e-05,2]
[351735791,1738771833471,-500.0,8.835e-05,2]
[351735792,1738771833480,-666.64916518,8.835e-05,2]
[351735794,1738771833491,-500.0,8.835e-05,2]
[351735796,1738771833501,-500.0,8.835e-05,2]
[351735798,1738771833510,-500.0,8.835e-05,2]
[351735800,1738771833519,-500.0,8.835e-05,2]
[351735801,1738771833529,-500.0,8.835e-05,2]
[351735803,1738771833538,-500.0,8.835e-05,2]
[351735805,1738771833548,-500.0,8.835e-05,2]
[351735806,1738771833558,-500.0,8.835e-05,2]
[351735808,1738771833568,-500.0,8.835e-05,2]
[351735810,1738771833577,-500.0,8.835e-05,2]
[351735812,1738771833587,-500.0,8.835e-05,2]
[351735813,1738771833598,-509.04,8.835e-05,2]
[351735815,1738771833609,-541.3,8.835e-05,2]
[351735817,1738771833619,-8209.9799,8.836e-05,2]
[351735818,1738771833628,-690.6555,8.836e-05,2]
[351735820,1738771833638,-500.0,8.851e-05,2]
[351735822,1738771833648,-1000.0,8.851e-05,2]
[351735824,1738771833657,-2500.0,8.851e-05,2]
[351735825,1738771833667,-303.3317,8.971e-05,2]
[351735827,1738771833678,-155.740945,8.971e-05,2]
[351735829,1738771833687,-500.0,8.971e-05,2]
[351735831,1738771833697,-500.0,8.971e-05,2]
[351735833,1738771833708,-155.65087,8.971e-05,2]
[351735834,1738771833718,-500.0,8.971e-05,2]
[351735836,1738771833727,-637.58,8.971e-05,2]
[351735838,1738771833737,-677.45,8.971e-05,2]
[351735840,1738771833747,-500.0,8.971e-05,2]
[351735841,1738771833757,-322.336595,8.971e-05,2]
[351735843,1738771833767,-500.0,8.971e-05,2]
[351735845,1738771833776,-500.0,8.971e-05,2]
[351735847,1738771833785,-500.0,8.971e-05,2]
[351735848,1738771833795,-927.41,8.971e-05,2]
[351735850,1738771833807,-764.98,8.971e-05,2]
[351735852,1738771833816,-785.56,8.971e-05,2]
[351735853,1738771833825,-500.0,8.971e-05,2]
[351735855,1738771833836,-1187.93,8.971e-05,2]
[351735857,1738771833847,-1413.76,8.971e-05,2]
[351735859,1738771833856,-695.95,8.971e-05,2]
[351735861,1738771833866,-500.0,8.971e-05,2]
[351735862,1738771833876,-500.0,8.971e-05,2]
[351735864,1738771833886,-1788.75,8.971e-05,2]
[351735866,1738771833895,-1194.3,8.971e-05,2]
[351735867,1738771833904,-500.0,8.971e-05,2]
[351735869,1738771833913,-500.0,8.971e-05,2]
[351735871,1738771833923,-500.0,8.971e-05,2]
[351735872,1738771833932,-500.0,8.971e-05,2]
[351735874,1738771833942,-933.46,8.971e-05,2]
[351735876,1738771833951,-500.0,8.971e-05,2]
[351735878,1738771833961,-500.0,8.971e-05,2]
[351735879,1738771833971,-500.0,8.971e-05,2]
[351735881,1738771833981,-500.0,8.971e-05,2]
[351735883,1738771833990,-500.0,8.971e-05,2]
[351735884,1738771834000,-500.0,8.971e-05,2]
[351735886,1738771834009,-500.0,8.971e-05,2]
[351735888,1738771834019,-500.0,8.971e-05,2]
[351735890,1738771834029,-500.0,8.971e-05,2]